Cogmind - Beta 17.1 @@@ ROGUE MODE // 2026.09.11 @ 13:45:23 Player: cel Result: Destroyed by Y-45 Defender with Beam Rifle Performance ------------- Evolutions (1) 500 Regions Visited (4) 800 Robots Destroyed (32) 160 Value Destroyed (848) 848 Prototype IDs (0) 0 Alien Tech Used (0) 0 Bonus (0) 0 TOTAL SCORE: 2308 Bonus ------- None Cogmind --------- Core Integrity 0/400 Matter 300/300 Energy 100/100 System Corruption 1% Temperature Warning (313) Movement Core (100) Ox1 Location -9/Storage Parts ------- > --- POWER (1) -------- (None) > --- PROPULSION (3) --- (None) > --- UTILITY (3) ------ Small Storage Unit > --- WEAPON (2) ------- Light Assault Rifle > --- INVENTORY (8) ---- Heat Sink Large Storage Unit Light Assault Rifle Grenade Launcher Peak State ------------ > --- POWER ------------ Improved Ion Engine > --- PROPULSION ------- Aluminum Leg Aluminum Leg Aluminum Leg > --- UTILITY ---------- Small Storage Unit Small Battery Sensor Array > --- WEAPON ----------- Medium Laser Light Assault Rifle > --- INVENTORY -------- Ion Engine Aluminum Leg Aluminum Leg Heat Sink Large Storage Unit Beam Cannon Light Assault Rifle Light Assault Rifle [Rating: 10] Favorites ----------- Power Ion Engine Engine Ion Engine Propulsion Aluminum Leg Leg Aluminum Leg Utility Small Storage Unit Device Sensor Array Storage Small Storage Unit Protection Light Armor Plating Weapon Light Assault Rifle Energy Gun Medium Laser Energy Cannon Beam Cannon Ballistic Gun Light Assault Rifle Special Weapon Mining Laser Build | -11 -10 -10 -9 -9 ------- Run | Yrd Mat Min Mat Sto Slots Evolved 2 | . . . 2 . Power . | . . . . . Propulsion 1 | . . . 1 . Utility 1 | . . . 1 . Weapon . | . . . . . Parts Attached 31 | 6 5 6 2 12 Power 5 | 1 . 1 . 3 Engine 5 | 1 . 1 . 3 Core . | . . . . . Reactor . | . . . . . Propulsion 12 | 2 2 3 1 4 Treads . | . . . . . Leg 12 | 2 2 3 1 4 Wheel . | . . . . . Hover . | . . . . . Flight . | . . . . . Utility 6 | 1 2 . 1 2 Device 2 | . 2 . . . Storage 2 | 1 . . 1 . Processor . | . . . . . Hackware . | . . . . . Protection 2 | . . . . 2 Artifact . | . . . . . Weapon 8 | 2 1 2 . 3 Energy Gun 2 | 1 . 1 . . Energy Cannon 1 | . . . . 1 Ballistic Gun 4 | 1 1 . . 2 Ballistic Cannon . | . . . . . Launcher . | . . . . . Special Weapon 1 | . . 1 . . Impact Weapon . | . . . . . Slashing Weapon . | . . . . . Piercing Weapon . | . . . . . Special Melee Weapon . | . . . . . Unidentified Prototypes . | . . . . . Parts Lost 16 | . 1 3 . 12 Power 3 | . . 1 . 2 Propulsion 5 | . . 1 . 4 Utility 3 | . . . . 3 Weapon 5 | . 1 1 . 3 Highest Loss Streak 10 | . 1 2 . 10 To Critical Strikes . | . . . . . Average Backups 6 | 2 6 7 6 7 Power . | . 1 . . . Propulsion 1 | . . 1 2 1 Utility 2 | . 2 3 2 2 Weapon 2 | 1 2 2 2 2 Tool/Special . | . . . . . Unused Backups 4 | . 1 . . 3 Power . | . . . . . Propulsion . | . . . . . Utility 1 | . . . . 1 Weapon 3 | . 1 . . 2 Tool/Special . | . . . . . Average Slot Usage (%) 97 | . 96 96 99 97 Engine 12 | . 14 12 11 10 Leg 29 | . 28 28 32 31 Device 11 | . 11 14 11 10 Storage 16 | . 14 14 22 19 Protection 1 | . . . . 3 Energy Gun 7 | . 6 9 11 6 Energy Cannon 1 | . . . . 3 Ballistic Gun 15 | . 21 14 11 11 Peak Build Rating 10 | 6 7 7 9 10 Average Rating 7 | 3 6 6 8 9 On Entrance 5 | . 6 7 7 9 Avg Prop Armor Cover (%) . | . . . . . Naked Turns . | . . . . . Heaviest Build 20 | 13 14 14 15 20 Greatest Support 30 | 20 20 20 30 30 Greatest Overweight (x) 1 | . 1 . . 1 Average Overweight (x) . | . . . . . Largest Inventory Capacity 8 | 8 8 8 8 8 Average Capacity 7 | 7 8 8 8 8 Most Carried 8 | 5 8 8 7 8 Average Carried 6 | 2 6 7 6 7 Final Capacity 8 | 8 8 8 8 8 Final Carried 8 | 2 8 8 7 4 Class Distribution -------------------- 69% | Mutant 30% | Scavenger-Mutant Dominant Class ---------------- Mutant | -10/Materials Mutant | -10/Mines Mutant | -9/Materials Scavenger-Mutant | -9/Storage Resources | -11 -10 -10 -9 -9 ----------- Run | Yrd Mat Min Mat Sto Matter Collected 637 | 242 88 91 . 216 Remotely . | . . . . . Salvage Created 1168 | . 349 179 . 640 Parts 67 | . 25 10 . 32 Haulers Intercepted 1 | . . . . 1 Recyclers Shooed . | . . . . . Parts Field Recycled . | . . . . . Retrieved Matter . | . . . . . Parts Self-Destructed . | . . . . . Prevented . | . . . . . Parts Restored . | . . . . . Kills | -11 -10 -10 -9 -9 ------- Run | Yrd Mat Min Mat Sto Combat Hostiles Destroyed 31 | . 10 6 . 15 Guns 27 | . 10 6 . 11 Cannons 4 | . . . . 4 Classes Destroyed 7 | . 4 1 . 2 Hauler 1 | . . . . 1 Recycler 1 | . 1 . . . Watcher 1 | . 1 . . . Swarmer 10 | . 6 . . 4 Grunt 14 | . 4 4 . 6 Sentry 5 | . . . . 5 Assembled 2 | . . 2 . . Best Kill Streak 6 | . 6 2 . 5 Combat Bots Only 6 | . 6 2 . 4 Max Kills in Single Turn 1 | . 1 1 . 1 Gunslinging . | . . . . . Exploded . | . . . . . Melee . | . . . . . Uniques/NPCs Destroyed . | . . . . . Combat | -11 -10 -10 -9 -9 -------- Run | Yrd Mat Min Mat Sto Hostile Shots Fired 256 | . 48 37 2 169 Missed 66 | . 16 6 1 43 Hits 190 | . 32 31 1 126 Melee 4 | . . 4 . . Projectile 186 | . 32 27 1 126 Critical Strikes 6 | . . 1 . 5 Damage Taken 2271 | . 274 442 18 1537 Core 537 | . 47 90 . 400 Absorbed by Shields . | . . . . . Core Remaining (%) 72 | 100 . 45 . . Volleys Fired 135 | . 26 37 1 71 Largest 2 | . 2 2 1 2 Hottest 100 | . 60 100 20 80 Shots Fired 219 | . 51 52 1 115 Gun 189 | . 51 47 1 90 Cannon 25 | . . . . 25 Launcher . | . . . . . Special 5 | . . 5 . . Kinetic 138 | . 44 32 1 61 Thermal 74 | . . 20 . 54 Explosive . | . . . . . Electromagnetic 7 | . 7 . . . Robot Hit Streak 14 | . 6 8 2 14 Robot Miss Streak 5 | . 2 2 . 5 Penetration Max . | . . . . . Secondary Targets 3 | . 1 . . 2 Max Gunslinging Chain 1 | . 1 . . 1 Shots Hit Robots 135 | . 30 34 1 70 Core Hits 67 | . 21 15 1 30 Critical Kills 1 | . . . . 1 Critical Parts Destroyed . | . . . . . Critical Strikes 5 | . . 1 . 4 Burn 4 | . . 1 . 3 Destroy 1 | . . . . 1 Melee Attacks . | . . . . . Impact . | . . . . . Slashing . | . . . . . Piercing . | . . . . . Sneak Attacks . | . . . . . Combat Hostiles . | . . . . . Follow-up Attacks . | . . . . . Damage Inflicted 1455 | . 276 335 7 837 Guns 1141 | . 276 335 7 523 Cannons 314 | . . . . 314 Explosions . | . . . . . Melee . | . . . . . Ramming . | . . . . . Kinetic 688 | . 224 171 7 286 Thermal 715 | . . 164 . 551 Explosive . | . . . . . Electromagnetic 52 | . 52 . . . Impact . | . . . . . Slashing . | . . . . . Piercing . | . . . . . Highest Corruption 1 | . . . . 1 Average Corruption 1 | . . . . 1 Corruption Purged . | . . . . . Corruption Blocked . | . . . . . Effects 3 | . . . . 3 Message Errors 1 | . . . . 1 Matter Fused 1 | . . . . 1 Energy Discharges 1 | . . . . 1 Overload Shots . | . . . . . Overflow Damage . | . . . . . Projectiles . | . . . . . Explosions . | . . . . . Melee . | . . . . . Knockbacks . | . . . . . Impact . | . . . . . Kinetic . | . . . . . Secondary . | . . . . . Self-Inflicted Damage . | . . . . . Shots . | . . . . . Rammed . | . . . . . Targets Rammed . | . . . . . Kicked . | . . . . . Crushed . | . . . . . Highest Temperature 496 | . 20 108 . 496 Average Temperature 106 | . 11 30 . 150 Received Heat Transfer 801 | . 42 72 . 687 Effects 6 | . . . . 6 Shutdowns 3 | . . . . 3 Interference 2 | . . . . 2 Short Circuit 1 | . . . . 1 Siege Activations . | . . . . . Martial Activations . | . . . . . Shielding Activations . | . . . . . Robots Disrupted . | . . . . . Combat Hostiles . | . . . . . Robots Corrupted . | . . . . . Combat Hostiles . | . . . . . Parts Fried . | . . . . . Impact Corruptions . | . . . . . Robots Melted . | . . . . . Combat Hostiles . | . . . . . Parts Melted 6 | . . 2 . 4 Heat Transferred 2146 | . . 555 . 1591 Parts Sabotaged . | . . . . . Parts Stolen . | . . . . . Parts Stripped . | . . . . . Power Chain Reactions . | . . . . . Alert | -11 -10 -10 -9 -9 ------- Run | Yrd Mat Min Mat Sto Maximum Alert Level . | . . . . . Low Security (%) 100 | 100 100 100 100 100 Level 1 . | . . . . . Level 2 . | . . . . . Level 3 . | . . . . . Level 4 . | . . . . . Level 5 . | . . . . . High Security . | . . . . . Max Security . | . . . . . Peak Influence 169 | . 159 48 5 169 Initial 48 | . . 48 1 . Average 46 | . 51 18 . 70 Influence Increases 890 | . 332 84 15 459 Destroy 0b10 Robot/C 580 | . 200 80 . 300 Destroy 0b10 Robot/NC 15 | . 10 . . 5 Destroy Leader 124 | . 32 . . 92 Allied During Kill 4 | . . 4 . . Disable Machine 15 | . . . . 15 Destroy Structure 2 | . . . . 2 Lose Combat Pursuer 150 | . 90 . 15 45 Influence Decreases 805 | . 206 206 19 374 Entered New Map 81 | . . 78 3 . Time Decay 574 | . 196 108 16 254 Lost Part 150 | . 10 20 . 120 Squads Dispatched 4 | . 1 . . 3 Investigation 1 | . 1 . . . Extermination . | . . . . . Reinforcement 3 | . . . . 3 Assault . | . . . . . Garrison . | . . . . . Intercept . | . . . . . Searches Triggered . | . . . . . Construction Impeded . | . . . . . Haulers Reinforced . | . . . . . Active Scanning Responses . | . . . . . Cargo Convoy Interrupts . | . . . . . Stealth | -11 -10 -10 -9 -9 --------- Run | Yrd Mat Min Mat Sto Distress Signals 4 | . 1 . 1 2 Communications Jammed . | . . . . . Distress Signals . | . . . . . Times Spotted 44 | . 16 6 2 20 Peak Tracking Total 7 | . 6 2 2 7 Tactical Retreats 5 | . 2 . 1 2 Traps | -11 -10 -10 -9 -9 ------- Run | Yrd Mat Min Mat Sto Traps Triggered 2 | . 1 . . 1 Indirectly . | . . . . . Trap Hack Attempts . | . . . . . Triggered . | . . . . . Disarmed . | . . . . . Reprogrammed . | . . . . . Reused . | . . . . . Traps Extracted . | . . . . . Installed . | . . . . . Triggered . | . . . . . Machines | -11 -10 -10 -9 -9 ---------- Run | Yrd Mat Min Mat Sto Machines Disabled 1 | . . . . 1 Max in Single Turn 1 | . . . . 1 Machines Repaired . | . . . . . Machines Dismantled . | . . . . . Machines Sabotaged . | . . . . . Overloaded Fab Kills . | . . . . . Hacking | -11 -10 -10 -9 -9 --------- Run | Yrd Mat Min Mat Sto Machines Accessed . | . . . . . Terminals . | . . . . . Fabricators . | . . . . . Repair Stations . | . . . . . Recycling Units . | . . . . . Scanalyzers . | . . . . . Garrison Access . | . . . . . Total Hacks . | . . . . . Successful . | . . . . . Failed . | . . . . . Catastrophic . | . . . . . Database Lockouts . | . . . . . Manual . | . . . . . Terminals . | . . . . . Fabricators . | . . . . . Repair Stations . | . . . . . Recycling Units . | . . . . . Scanalyzers . | . . . . . Garrison Access . | . . . . . Terminal Hacks . | . . . . . Fabricator Hacks . | . . . . . Repair Station Hacks . | . . . . . Recycling Unit Hacks . | . . . . . Scanalyzer . | . . . . . Garrison Access Hacks . | . . . . . Unauthorized Hacks . | . . . . . Terminals . | . . . . . Fabricators . | . . . . . Repair Stations . | . . . . . Recycling Units . | . . . . . Scanalyzers . | . . . . . Garrison Access . | . . . . . Data Cores Recovered . | . . . . . Used . | . . . . . Hacking Detections . | . . . . . Full Trace Events . | . . . . . Feedback Events . | . . . . . Feedback Blocked . | . . . . . Robot Schematics Acquired . | . . . . . Robots Built . | . . . . . Authchips . | . . . . . Time . | . . . . . Total Robot Build Rating . | . . . . . Part Schematics Acquired . | . . . . . Parts Built . | . . . . . Authchips . | . . . . . Time . | . . . . . Total Part Build Rating . | . . . . . Part Studies Acquired . | . . . . . Parts Repaired . | . . . . . Time . | . . . . . Parts Recycled . | . . . . . Recycled Matter . | . . . . . Retrieved Matter . | . . . . . Retrieved Components . | . . . . . Parts Scanalyzed . | . . . . . Part Schematics Acquired . | . . . . . Parts Damaged . | . . . . . Bothacking | -11 -10 -10 -9 -9 ------------ Run | Yrd Mat Min Mat Sto Used RIF Installer . | . . . . . Robots Hacked . | . . . . . Non-combat . | . . . . . Combat . | . . . . . Robot Hacks Applied . | . . . . . Relay Couplers Released . | . . . . . Fabnet Peak Effective % . | . . . . . Robots Rewired . | . . . . . Allies Hacked . | . . . . . Hacks Repelled . | . . . . . Allies | -11 -10 -10 -9 -9 -------- Run | Yrd Mat Min Mat Sto Total Allies 1 | . . 1 . . Largest Group 1 | . . 1 1 . Highest-Rated Group 31 | . . 31 31 . Highest-Rated Ally 31 | . . 31 31 . Total Orders . | . . . . . Ally Attacks . | . . . . . Total Damage . | . . . . . Kills . | . . . . . Allies Corrupted . | . . . . . Allies Melted . | . . . . . Intel | -11 -10 -10 -9 -9 ------- Run | Yrd Mat Min Mat Sto Active Infowar (turns) 1334 | . 424 277 123 510 Sensors 1334 | . 424 277 123 510 Robot Analysis Total . | . . . . . Derelict Logs Recovered 2 | . . 2 . . Drone Launches . | . . . . . Drone Recoveries . | . . . . . Exploration | -11 -10 -10 -9 -9 ------------- Run | Yrd Mat Min Mat Sto Turns Passed 1525 | 53 527 277 123 545 Spaces Moved 823 | 40 278 133 99 273 Core 11 | 11 . . . . Treads . | . . . . . Legs 812 | 29 278 133 99 273 Wheels . | . . . . . Hover . | . . . . . Flight . | . . . . . Fastest Speed 50 | 50 120 120 120 120 Average Speed 119 | 100 120 120 120 120 Slowest Speed 190 | 120 190 120 120 190 Overloaded Moves . | . . . . . Propulsion Burnouts . | . . . . . Robots Hopped . | . . . . . Potential Cave-ins . | . . . . . Cave-ins Triggered . | . . . . . Exploration Rate (%) 29 | 3 46 38 10 52 Regions Visited 4 Branch Regions 2 Pre-discovered Areas 1 | . . 1 . . Known Exits Taken 1 | . . . 1 . Unknown Exits Taken 3 | 1 1 1 . . Scrap Searched . | . . . . . Spaces Dug . | . . . . . Terrain Destroyed . | . . . . . Melee . | . . . . . Projectile . | . . . . . AOE . | . . . . . Terrain Rammed . | . . . . . Walls Destroyed . | . . . . . Machines Disabled . | . . . . . Actions | -11 -10 -10 -9 -9 --------- Run | Yrd Mat Min Mat Sto Total 1166 | 52 430 194 102 388 Wait 138 | . 110 13 . 15 Move 819 | 39 277 132 98 273 Hop . | . . . . . Pick Up 26 | 7 9 3 1 6 Fast Attach 3 | 1 . 2 . . Attach 19 | 5 2 3 2 7 Detach 1 | . . . . 1 Swap 12 | . 3 2 . 7 Drop 13 | . 3 2 . 8 Fire 135 | . 26 37 1 71 Melee . | . . . . . Ram . | . . . . . Kick . | . . . . . Crush . | . . . . . Escape Stasis . | . . . . . Rewire . | . . . . . Trap . | . . . . . Miscellaneous . | . . . . . Route ------- -11/Scrapyard -10/Materials -10/Mines -9/Materials -9/Storage History --------- Turn | Location | Event 17 | -11/Scrapyard | Discovered new exit (range 15) 54 | -11/Scrapyard | Entered Materials 322 | -10/Materials | Build established: Mutant 574 | -10/Materials | Discovered new exit (range 7) 581 | -10/Materials | Entered Mines 584 | -10/Mines | Received a Mining Laser from a helpful Derelict 610 | -10/Mines | Excavation squad dispatched 610 | -10/Mines | A large section of the Mines collapsed 683 | -10/Mines | Learned location of Recycling (-9) 723 | -10/Mines | Core integrity fell below 50% 844 | -10/Mines | Discovered new exit (range 9) 858 | -10/Mines | Entered Materials 858 | -9/Materials | Accompanied by 1 ally 858 | -9/Materials | Evolved 2 slots: Propulsion x1, Utility x1 859 | -9/Materials | Identified exit to Storage 981 | -9/Materials | Entered Storage 1349 | -9/Storage | Build established: Scavenger-Mutant 1486 | -9/Storage | Core integrity fell below 50% 1519 | -9/Storage | Core integrity fell below 20% 1526 | -9/Storage | Destroyed by Y-45 Defender with Beam Rifle Last Messages --------------- Power failure, Imp. Ion Engine shutdown. Aluminum Leg destroyed. Critical hit (Burn: +37). G-34 Mercenary heat short circuits Ion Engine. Acquired 17 matter. Lgt. Assault Rifle destroyed. Imp. Ion Engine destroyed. Beam Cannon destroyed. Lgt. Armor Plating destroyed. Acquired 5 matter. Acquired 1 matter. G-34 Mercenary destroyed. Acquired 1 matter. K-01 Serf collects debris. Acquired 1 matter. K-01 Serf collects debris. Acquired 1 matter. Sml. Battery destroyed. Aluminum Leg destroyed. K-01 Serf collects debris. Map ----- +----------------------------------------------------+ | ""#?#####????# #?# ######+##"# | | ###?#"""#????# #?# + | | #####"Y"###### #?# ##### # | | # + #?# ### #???# # | | # """ """ #### #?# #?# #???#=+% | | # """ """ #### #?#+#???#=### | | # """ """ """# ##### #??????##%##? | | [+ R"# "???# #??????# [ ## | | # """# T???# #??????# T | | # #### "???# #??????# ## | | # #??# #???# #??????#####? | | [ =###########???+## #???# #???????????? | | [ #???????????????# #???#+#####???????????? | | % #???????????????# #?????????????????????? | | [=#???????????????+ ?????????????????????? | | !!#???????????????# #?????????????????????? | | !%#???????????????# ^ ^ #??????####???????????? | | =!+???????????????# #??????# ???????????? | | =#???????????????# #??????# "???????????? | | #???????????????# #??????# "??????#???## | | #???????????????# #??????# "????? #???#" | | #???????????????# #??????# "???? #???#" | | #???????????##### * ######## "??? #???#" | | #??????# ==%[! %= / """" #???## | | #??????# ###### ##+##Y######## #????? | | #??????????????????# %@* #???######+########## | | #??????????????????#gg!* #???# | | #??????????????????# k%"""#???# | | T??????????????????# ! ""#???# | | #??????????????????# [%"""#???#####+##########+ | | ??????????????????# ! #??????# ###### % | | ???????????????????###### #??????# !!!## | | ????????????????????????????##??????# "!!!## | | ????????????????????????????????????##T###### ] | | ?????????????????????????????????????###????# ] | | ????????????????????????????????????????????# | | ????????????????????????????????????????????# | | ????????????????????????????????????????????# | | ????????????????????????????????????????????###### | | ?????????????????????????????????????????????????? | | ?????????????????????????????????????????????????? | | ?????????????????????????????????????????????????? | | ?????????????????????????????????????????????????? | | ?????????????????????????????????????????????????? | | ?????????????????????????????????????????????????? | | ?????????????????????????????????????????????????? | | ?????????????????????????????????????????????????? | | ?????????????????????????????????????????????????? | | ?????????????????????????????????????????????????? | | ?????????????????????????????????????????????????? | +----------------------------------------------------+ Best States ------------- Heat Dissipation 35 Energy Generation 12 Energy Capacity 365 Matter Stores 300 Matter Capacity 300 Sight Range 16 Robot Scan Range 14 Terrain Scan Density 10 Armor Coverage 150 Evasion (%) 55 Item Schematics ----------------- None Robot Schematics ------------------ None Fabricated ------------ Nothing Repaired ---------- Nothing Studied --------- None Alien Tech Used ----------------- None Achievements -------------- None Challenges ------------ None Game ------ Seed MissilePhasingTelecube Manual? 0 Play Time 00:20:18 Cumulative 25.9 hours Start 2026.09.11 @ 13:24:51 End 2026.09.11 @ 13:45:23 Sessions 1 Manual Loads 0 Difficulty Rogue Special Mode None Game No. 38 Rogue 38 Adventurer 0 Explorer 0 Win Type - Total 0 Types 0/0/0/0/0/0/0/0/0/0 Lore% 22 Gallery% 19 Achievement% 16 Wizard Run 0 Options --------- Layout 1 ASCII 0 Keyboard 0 Movement Mouse Keybinds 0 Fullscreen 1 Font 16/SmallcapsGlow Map View 50x40 Zoom Use 0% Tactical HUD 0 Map Filters NONE Filters NONE Steam SD RUN: 419e38e5-aa49-46fe-942a-d4a5b959f8e9